fUST/lending_fUST_20260331
["ID","MTS","AMOUNT","RATE_DAILY","PERIOD"]
[419148265,1774942243409,-443.0,0.000227,2]
[419148272,1774942243470,-2160.0,0.000227,2]
[419148313,1774942246393,-199.29,0.0002269,10]
[419148314,1774942246403,-172085.6316808,0.000227,2]
[419148315,1774942246524,-3243.02942361,0.000227,2]
[419148317,1774942375425,500.0,0.00032876,120]
[419148318,1774942375653,500.0,0.00032876,120]
[419148319,1774942375891,467.79019599,0.00032876,120]
[419148320,1774942705472,1664.46,0.0003285,120]
[419148321,1774942874211,500.0,0.00032876,120]
[419148322,1774942874451,500.0,0.00032876,120]
[419148323,1774942874834,500.0,0.00032876,120]
[419148324,1774942874948,500.0,0.00032876,120]
[419148325,1774942875216,500.0,0.00032876,120]
[419148326,1774942875454,500.0,0.00032876,120]
[419148327,1774942875681,500.0,0.00032876,120]
[419148328,1774942875911,500.0,0.00032876,120]
[419148329,1774942876140,500.0,0.00032876,120]
[419148330,1774942876413,255.49367901,0.00032876,120]
[419148331,1774943070614,500.0,0.00032876,120]
[419148332,1774943070848,500.0,0.00032876,120]
[419148333,1774943071090,500.0,0.00032876,120]
[419148334,1774943071363,500.0,0.00032876,120]
[419148335,1774943071608,434.96761542,0.00032876,120]
[419148352,1774943318344,500.0,0.00032876,120]
[419148353,1774943318570,206.82995304,0.00032876,120]
[419148563,1774943441246,-362.1222689,0.00013365,14]
[419148565,1774943441256,-1000.0,0.00013699,2]
[419148567,1774943441265,-615.0,0.00013699,2]
[419148569,1774943441276,-399.75354257,0.0001766,2]
[419148571,1774943441287,-2121.45468752,0.00019078,2]
[419148573,1774943441297,-559.0584784,0.00019173,2]
[419148575,1774943441307,-300.0,0.00019176,2]
[419148577,1774943441318,-200.0,0.00019176,2]
[419148579,1774943441327,-300.0,0.00019176,2]
[419148581,1774943441337,-360.305,0.00019177,2]
[419148583,1774943441347,-500.0,0.00019177,2]
[419148585,1774943441357,-500.0,0.00019177,2]
[419148587,1774943441367,-405.24263566,0.00019177,2]
[419148590,1774943441377,-500.0,0.00019177,2]
[419148592,1774943441386,-500.0,0.00019177,2]
[419148594,1774943441396,-405.83279402,0.00019177,2]
[419148596,1774943441406,-500.0,0.00019177,2]
[419148599,1774943441425,-375.84459467,0.00019177,2]
[419148601,1774943441435,-404.91819328,0.00019177,2]
[419148603,1774943441445,-10000.0,0.00019178,30]
[419148605,1774943441455,-10000.0,0.00019178,30]
[419148607,1774943441464,-10000.0,0.00019178,30]
[419148609,1774943441474,-3206.0,0.00019178,30]
[419148611,1774943441484,-10000.0,0.00019178,30]
[419148614,1774943441494,-10000.0,0.00019178,30]
[419148617,1774943441503,-10000.0,0.00019178,30]
[419148620,1774943441513,-3641.0,0.00019178,30]
[419148623,1774943441522,-10000.0,0.00019178,30]
[419148626,1774943441532,-5082.0,0.00019178,30]
[419148628,1774943441541,-2121.45468746,0.00020824,2]
[419148630,1774943441551,-254.98812666,0.0002185,2]
[419148632,1774943441560,-291.41500189,0.0002185,2]
[419148634,1774943441570,-454.88060452,0.0002185,2]
[419148636,1774943441580,-1612.7921645,0.00021862,2]
[419148638,1774943441591,-848.52,0.0002199,10]
[419148640,1774943441600,-5000.0,0.00022,2]
[419148642,1774943441611,-392.0,0.00022,2]
[419148644,1774943441621,-182.0,0.00022,2]
[419148646,1774943441631,-1915.63381584,0.000224,2]
[419148648,1774943441641,-500.0,0.00022473,2]
[419148651,1774943441653,-500.0,0.00022473,2]
[419148653,1774943441662,-529.52119788,0.00022473,2]
[419148655,1774943441672,-500.0,0.00022473,2]
[419148657,1774943441681,-356.63609363,0.00022473,2]
[419148659,1774943441691,-593.82794115,0.00022473,2]
[419148661,1774943441700,-530.06548713,0.00022473,2]
[419148663,1774943441710,-450.03215451,0.00022487,2]
[419148665,1774943441719,-180.02706243,0.00022487,2]
[419148667,1774943441728,-599.60298507,0.00022487,2]
[419148669,1774943441738,-599.60298507,0.00022487,2]
[419148671,1774943441749,-356.93228246,0.00022499,2]
[419148673,1774943441758,-50947.8300789,0.000225,2]
[419148685,1774943441858,-121889.94685355,0.000225,2]
[419148687,1774943441869,-1361.65902798,0.000225,2]
[419148939,1774943446388,-373.34,0.0002249,10]
[419148940,1774943446398,-34219.92069406,0.000225,2]
[419148942,1774943495515,4610.02107168,0.00035098,120]
[419148968,1774943882881,500.0,0.00032876,120]
[419148979,1774944119372,-250.29754891,0.00013698,2]
[419148980,1774944137257,500.0,0.00032876,120]
[419148981,1774944139845,206.0380112,0.00035093,120]
[419148989,1774944607183,522.77577647,0.0003287,120]
[419149189,1774944634156,-3710.25908541,7e-05,2]
[419149191,1774944634167,-484.44993448,0.000104,2]
[419149193,1774944634177,-1000.0,0.00013699,2]
[419149195,1774944634187,-500.0,0.00013699,2]
[419149197,1774944634197,-500.0,0.00013699,2]
[419149199,1774944634207,-326.9248748,0.00013699,2]
[419149201,1774944634217,-615.0,0.00013699,2]
[419149203,1774944634227,-163.0743128,0.00020281,5]
[419149205,1774944634237,-196.2113003,0.00021085,2]
[419149207,1774944634247,-1000.0,0.00021556,2]
[419149209,1774944634257,-455.1219555,0.00021907,2]
[419149211,1774944634267,-455.1794191,0.00021907,2]
[419149213,1774944634277,-8811.04466891,0.0002192,2]
[419149215,1774944634288,-196.2308133,0.0002192,2]
[419149217,1774944634298,-324.5176103,0.0002192,2]
[419149219,1774944634308,-599.60298507,0.00021987,2]
[419149221,1774944634318,-372.0,0.00022,2]
[419149223,1774944634327,-621.78829552,0.00022042,2]
[419149225,1774944634337,-644.79446246,0.00022097,2]
[419149227,1774944634347,-668.65185757,0.00022152,2]
[419149229,1774944634357,-693.3919763,0.00022207,2]
[419149231,1774944634367,-719.04747942,0.00022262,2]
[419149233,1774944634376,-745.65223616,0.00022317,2]
[419149235,1774944634386,-773.2413689,0.00022372,2]
[419149237,1774944634396,-556.07366153,0.00022427,2]
[419149239,1774944634405,-691.0,0.000225,3]
[419149241,1774944634415,-691.0,0.000225,3]
[419149249,1774944634530,-691.0,0.000225,3]
[419149250,1774944634545,-166.0,0.000225,3]
[419149251,1774944634554,-491.6678339,0.000225,3]
[419149252,1774944634564,-166.0,0.000225,3]
[419149253,1774944634574,-733.7955837,0.000225,3]
[419149254,1774944634584,-151.0,0.00022742,2]
[419149255,1774944634595,-228.12330749,0.00022767,2]
[419149256,1774944634605,-161.18070062,0.00022877,8]
[419149257,1774944634615,-600.0,0.00022949,10]
[419149258,1774944634625,-270.83333333,0.00023,2]
[419149259,1774944634635,-372.0,0.00023,2]
[419149261,1774944634644,-1591.09101563,0.000233,2]
[419149263,1774944634655,-1724.07043431,0.00023338,2]
[419149265,1774944634664,-578.25433893,0.00023373,2]
[419149266,1774944634673,-459.94237276,0.00023386,2]
[419149267,1774944634683,-332.54997438,0.00023399,2]
[419149268,1774944634692,-22036.09559752,0.000234,2]
[419149269,1774944638502,-6984.30614213,0.000234,2]
[419149270,1774944638514,-61707.23466923,0.000234,2]
[419149271,1774944638607,-697.31738158,0.000234,2]
[419149365,1774944643957,-173.0,0.00022,2]
[419149366,1774944643967,-173.0,0.00023,2]
[419149367,1774944643978,-18960.9,0.000234,2]
[419149368,1774944643989,-3896.11847603,0.000234,2]
[419149376,1774944646746,-3225.65160647,0.000234,2]
[419149377,1774944646757,-53890.58278876,0.000234,2]
[419149378,1774944646772,-50418.87887635,0.000234,2]
[419149379,1774944646784,-921.64530477,0.000234,2]
[419149380,1774944646800,-3952.86633803,0.000234,2]
[419149387,1774944658468,763.0,0.00035093,120]
[419149388,1774944958553,-720.0,0.00026254,30]
[419149389,1774944958589,-372.0,0.00028546,30]
[419149390,1774944958619,-173.0,0.00028546,30]
[419149391,1774944958650,-864.0,0.00028879,30]
[419149392,1774944958680,-372.0,0.00029546,30]
[419149393,1774944958714,-173.0,0.00029546,30]
[419149394,1774944958745,-372.0,0.00030546,30]
[419149395,1774944958775,-173.0,0.00030546,30]
[419149396,1774944958805,-372.0,0.00031546,30]
[419149397,1774944958833,-173.0,0.00031546,30]
[419149398,1774944958865,-1000.0,0.00031767,30]
[419149399,1774944958895,-372.0,0.00032546,30]
[419149400,1774944958925,-173.0,0.00032546,30]
[419149401,1774944958959,-1000.0,0.000329,120]
[419149402,1774944958989,-240.25,0.00032927,60]
[419149403,1774944959019,-240.25,0.00033027,60]
[419149404,1774944959050,-240.25,0.00033127,60]
[419149405,1774944959079,-1000.0,0.000332,120]
[419149406,1774944959108,-240.25,0.00033227,60]
[419149407,1774944959138,-240.25,0.00033327,60]
[419149408,1774944959166,-546.4931,0.000334,30]
[419149409,1774944959195,-240.25,0.00033427,60]
[419149410,1774944959224,-1000.0,0.000335,120]
[419149411,1774944959253,-240.25,0.00033527,60]
[419149412,1774944959281,-372.0,0.00033546,30]
[419149413,1774944959309,-173.0,0.00033546,30]
[419149414,1774944959338,-240.25,0.00033627,60]
[419149415,1774944959369,-240.25,0.00033727,60]
[419149416,1774944959396,-1000.0,0.000338,120]
[419149417,1774944959425,-240.25,0.00033827,60]
[419149418,1774944959454,-240.25,0.00033927,60]
[419149419,1774944959483,-240.25,0.00034027,60]
[419149420,1774944959510,-200.0,0.00034078,120]
[419149421,1774944959537,-1000.0,0.000341,120]
[419149422,1774944959566,-240.25,0.00034127,60]
[419149423,1774944959596,-240.25,0.00034227,60]
[419149424,1774944959624,-200.0,0.00034229,120]
[419149425,1774944959652,-240.25,0.00034327,60]
[419149426,1774944959682,-200.0,0.00034369,120]
[419149427,1774944959709,-1000.0,0.000344,120]
[419149428,1774944959836,-240.25,0.00034427,60]
[419149429,1774944959866,-240.25,0.00034527,60]
[419149430,1774944959894,-372.0,0.00034546,30]
[419149431,1774944959923,-173.0,0.00034546,30]
[419149432,1774944959956,-240.25,0.00034627,60]
[419149433,1774944959983,-1000.0,0.000347,120]
[419149434,1774944960012,-240.25,0.00034727,60]
[419149435,1774944960041,-240.25,0.00034827,60]
[419149436,1774944960070,-240.25,0.00034927,60]
[419149437,1774944960102,-1000.0,0.00034944,30]
[419149438,1774944960144,-244.0,0.00034944,30]
[419149439,1774944960176,-1000.0,0.00035,120]
[419149440,1774944960208,-168.0,0.00035,120]
[419149441,1774944960239,-503.68,0.00035,120]
[419149442,1774944960269,-500.0,0.00035,120]
[419149443,1774944960301,-200.0,0.00035,120]
[419149444,1774944960333,-240.25,0.00035027,60]
[419149445,1774944960362,-1122.33821884,0.00035066,120]
[419149446,1774944960392,-645.11691094,0.00035066,120]
[419149447,1774944960420,-621.25584555,0.00035066,120]
[419149448,1774944960450,-620.06279228,0.00035066,120]
[419149449,1774944960479,-355.0,0.00035089,120]
[419149450,1774944960507,-2011.0,0.00035089,120]
[419149451,1774944960536,-500.0,0.00035089,120]
[419149452,1774944960565,-500.0,0.00035089,120]
[419149453,1774944960595,-5000.0,0.0003509,120]
[419149454,1774944960623,-150.5,0.00035092,120]
[419149455,1774944960653,-194.21507376,0.00035093,120]
[419149456,1774944960682,-160.0,0.00035093,120]
[419149457,1774944960711,-153.0,0.00035093,120]
[419149458,1774944960739,-372.0,0.00035093,120]
[419149459,1774944960768,-173.0,0.00035093,120]
[419149460,1774944960796,-152.0,0.00035093,120]
[419149461,1774944960824,-1183.78947306,0.00035093,120]
[419149462,1774944960852,-235.81,0.00035093,30]
[419149463,1774944960880,-5000.0,0.00035093,120]
[419149464,1774944960922,-569.0,0.00035093,30]
[419149465,1774944960950,-500.0,0.00035096,60]
[419149466,1774944960980,-240.25,0.00035127,60]
[419149467,1774944961011,-240.25,0.00035227,60]
[419149468,1774944961039,-1067.0,0.000353,120]
[419149469,1774944961071,-240.25,0.00035327,60]
[419149470,1774944961101,-240.25,0.00035427,60]
[419149471,1774944961131,-168.0,0.000355,120]
[419149472,1774944961163,-240.25,0.00035527,60]
[419149473,1774944961192,-161.48,0.000356,120]
[419149474,1774944961222,-532.37,0.000356,120]
[419149475,1774944961253,-240.25,0.00035627,60]
[419149476,1774944961283,-240.25,0.00035727,60]
[419149477,1774944961312,-240.25,0.00035827,60]
[419149478,1774944961341,-168.0,0.000359,120]
[419149479,1774944961373,-240.25,0.00035927,60]
[419149480,1774944961406,-240.25,0.00036027,60]
[419149481,1774944961435,-160.0,0.00036093,120]
[419149482,1774944961466,-153.0,0.00036093,120]
[419149483,1774944961495,-372.0,0.00036093,120]
[419149484,1774944961524,-173.0,0.00036093,120]
[419149485,1774944961551,-152.0,0.00036093,120]
[419149486,1774944961580,-240.25,0.00036127,60]
[419149487,1774944961611,-240.25,0.00036227,60]
[419149488,1774944961644,-240.25,0.00036327,60]
[419149489,1774944961675,-168.0,0.000364,120]
[419149490,1774944961705,-240.25,0.00036427,60]
[419149491,1774944961736,-240.25,0.00036527,60]
[419149492,1774944961765,-200.0,0.00036616,120]
[419149493,1774944961795,-240.25,0.00036627,60]
[419149494,1774944961824,-240.25,0.00036727,60]
[419149495,1774944961854,-240.25,0.00036827,60]
[419149496,1774944961883,-168.0,0.000369,120]
[419149497,1774944961912,-240.25,0.00036927,60]
[419149498,1774944961943,-240.25,0.00037027,60]
[419149499,1774944961971,-160.0,0.00037093,120]
[419149500,1774944961999,-153.0,0.00037093,120]
[419149501,1774944962028,-372.0,0.00037093,120]
[419149502,1774944962066,-173.0,0.00037093,120]
[419149503,1774944962096,-152.0,0.00037093,120]
[419149504,1774944962127,-240.25,0.00037127,60]
[419149505,1774944962157,-240.25,0.00037227,60]
[419149506,1774944962186,-168.0,0.000373,120]
[419149507,1774944962216,-240.25,0.00037327,60]
[419149508,1774944962245,-240.25,0.00037427,60]
[419149509,1774944962274,-240.25,0.00037527,60]
[419149510,1774944962303,-240.25,0.00037627,60]
[419149511,1774944962331,-292.32,0.000377,60]
[419149512,1774944962358,-819.1928,0.000377,120]
[419149513,1774944962388,-240.25,0.00037727,60]
[419149514,1774944962416,-168.0,0.000378,120]
[419149515,1774944962447,-240.25,0.00037827,60]
[419149516,1774944962476,-240.25,0.00037927,60]
[419149517,1774944962504,-165.2,0.00038,120]
[419149518,1774944962532,-1000.91,0.00038,120]
[419149519,1774944962559,-230.12448023,0.00038,120]
[419149520,1774944962587,-500.0,0.00038,120]
[419149521,1774944962716,-240.25,0.00038027,60]
[419149522,1774944962747,-160.0,0.00038093,120]
[419149523,1774944962776,-153.0,0.00038093,120]
[419149524,1774944962805,-372.0,0.00038093,120]
[419149525,1774944962835,-173.0,0.00038093,120]
[419149526,1774944962864,-152.0,0.00038093,120]
[419149527,1774944962894,-240.25,0.00038127,60]
[419149528,1774944962922,-168.0,0.000382,120]
[419149529,1774944962956,-240.25,0.00038227,60]
[419149530,1774944962986,-240.25,0.00038327,60]
[419149531,1774944963014,-225.78198289,0.00038356,120]
[419149532,1774944963042,-240.25,0.00038427,120]
[419149533,1774944963072,-1000.0,0.00038438,60]
[419149534,1774944963102,-492.0,0.00038438,60]
[419149535,1774944963131,-173.46,0.000385,120]
[419149536,1774944963160,-240.25,0.00038527,120]
[419149537,1774944963190,-240.25,0.00038627,120]
[419149538,1774944963218,-168.0,0.000387,120]
[419149539,1774944963249,-240.25,0.00038727,120]
[419149540,1774944963279,-240.25,0.00038827,120]
[419149541,1774944963309,-240.25,0.00038927,120]
[419149542,1774944963339,-200.0,0.00038974,120]
[419149543,1774944963367,-182.13,0.00039,120]
[419149544,1774944963397,-240.25,0.00039027,120]
[419149545,1774944963426,-160.0,0.00039093,120]
[419149546,1774944963453,-153.0,0.00039093,120]
[419149547,1774944963482,-372.0,0.00039093,120]
[419149548,1774944963512,-173.0,0.00039093,120]
[419149549,1774944963541,-152.0,0.00039093,120]
[419149550,1774944963571,-240.25,0.00039127,120]
[419149551,1774944963600,-168.0,0.000392,120]
[419149552,1774944963632,-240.25,0.00039227,120]
[419149553,1774944963663,-240.25,0.00039327,120]
[419149554,1774944963693,-240.25,0.00039427,120]
[419149555,1774944963724,-191.25,0.000395,120]
[419149556,1774944963756,-240.25,0.00039527,120]
[419149557,1774944963787,-168.0,0.000396,120]
[419149558,1774944963817,-240.25,0.00039627,120]
[419149559,1774944963848,-240.25,0.00039727,120]
[419149560,1774944963881,-240.25,0.00039827,120]
[419149561,1774944963912,-452.19,0.000399,120]
[419149562,1774944963944,-240.25,0.00039927,120]
[419149563,1774944963973,-434.65901284,0.00039999,31]
[419149564,1774944964004,-502.89723899,0.00039999,31]
[419149565,1774944964033,-529.74131365,0.00039999,31]
[419149566,1774944964063,-270.8461344,0.0004,30]
[419149567,1774944964091,-532.50969788,0.0004,120]
[419149568,1774944964120,-299.78774363,0.0004,120]
[419149569,1774944964150,-500.0,0.0004,120]
[419149570,1774944964185,-1030.0,0.0004,30]
[419149571,1774944964216,-240.25,0.00040027,120]
[419149572,1774944964251,-160.0,0.00040093,120]
[419149573,1774944964286,-153.0,0.00040093,120]
[419149574,1774944964321,-372.0,0.00040093,120]
[419149575,1774944964354,-173.0,0.00040093,120]
[419149576,1774944964387,-152.0,0.00040093,120]
[419149577,1774944964422,-168.0,0.000401,120]
[419149578,1774944964457,-240.25,0.00040127,120]
[419149579,1774944964496,-240.25,0.00040227,120]
[419149580,1774944964532,-240.25,0.00040327,120]
[419149581,1774944964566,-240.25,0.00040427,120]
[419149582,1774944964598,-200.0,0.00040509,120]
[419149583,1774944964634,-240.25,0.00040527,120]
[419149584,1774944964667,-168.0,0.000406,120]
[419149585,1774944964700,-240.25,0.00040627,120]
[419149586,1774944964737,-240.65828153,0.00040727,120]
[419149587,1774944964771,-168.0,0.00041,120]
[419149588,1774944964805,-1030.0,0.00041,30]
[419149589,1774944964837,-160.0,0.00041093,120]
[419149590,1774944964869,-153.0,0.00041093,120]
[419149591,1774944964903,-372.0,0.00041093,120]
[419149592,1774944964935,-173.0,0.00041093,120]
[419149593,1774944964967,-152.0,0.00041093,120]
[419149594,1774944965002,-500.0,0.00041095,120]
[419149595,1774944965037,-150.46167245,0.000411,120]
[419149596,1774944965070,-150.46167245,0.000411,120]
[419149597,1774944965104,-150.46167245,0.000411,120]
[419149598,1774944965138,-150.46167245,0.000411,120]
[419149599,1774944965173,-150.46167245,0.000411,120]
[419149600,1774944965203,-150.46,0.000411,120]
[419149601,1774944965233,-150.46167245,0.000411,120]
[419149602,1774944965263,-150.46167245,0.000411,120]
[419149603,1774944965293,-150.46167245,0.000411,120]
[419149604,1774944965328,-150.46167245,0.000411,120]
[419149605,1774944965362,-150.46167245,0.000411,120]
[419149606,1774944965392,-150.46167245,0.000411,120]
[419149607,1774944965424,-150.46167245,0.000411,120]
[419149608,1774944965457,-150.46167245,0.000411,120]
[419149609,1774944965491,-150.46167245,0.000411,120]
[419149610,1774944965520,-150.46167245,0.000411,120]
[419149611,1774944965550,-150.46167245,0.000411,120]
[419149612,1774944965580,-150.46167245,0.000411,120]
[419149613,1774944965610,-150.46167245,0.000411,120]
[419149614,1774944965640,-150.46,0.000411,120]
[419149615,1774944965670,-236.34,0.000411,120]
[419149616,1774944965701,-500.0,0.00041369,120]
[419149617,1774944965732,-168.0,0.000415,120]
[419149618,1774944965766,-500.0,0.00041643,120]
[419149619,1774944965799,-168.0,0.000419,120]
[419149620,1774944965833,-423.75417205,0.00041917,120]
[419149621,1774944965865,-602.439999,0.00042,120]
[419149622,1774944965898,-361.75,0.00042,120]
[419149623,1774944966059,-500.0,0.00042,120]
[419149624,1774944966093,-1030.0,0.00042,30]
[419149625,1774944966123,-500.0,0.00042192,30]
[419149626,1774944966159,-1000.0,0.00042282,60]
[419149627,1774944966193,-791.0,0.00042282,60]
[419149628,1774944966225,-168.0,0.000424,120]
[419149629,1774944966256,-705517.9014,0.0004243,30]
[419149630,1774944966286,-705517.9014,0.0004244,30]
[419149631,1774944966319,-168.0,0.000429,120]
[419149632,1774944966348,-506.78,0.00043,120]
[419149633,1774944966377,-207.2469139,0.00043,120]
[419149634,1774944966405,-1030.0,0.00043,30]
[419149635,1774944966435,-168.0,0.000433,120]
[419149636,1774944966467,-200.0,0.00043541,120]
[419149637,1774944966495,-515.0,0.000438,90]
[419149638,1774944966524,-168.0,0.000438,120]
[419149639,1774944966552,-208.31534181,0.000438,120]
[419149640,1774944966583,-949.53,0.00043993,120]
[419149641,1774944966614,-500.0,0.00044,120]
[419149642,1774944966643,-1030.0,0.00044,30]
[419149643,1774944966672,-27787.40623262,0.000441,47]
[419149644,1774944966699,-500.0,0.00044246,30]
[419149645,1774944966736,-168.0,0.000443,120]
[419149646,1774944966767,-196.07,0.00044658,120]
[419149647,1774944966796,-441.49,0.00044699,71]
[419149648,1774944966827,-168.0,0.000447,120]
[419149649,1774944966856,-3120.22064,0.000449,120]
[419149650,1774944966883,-657.50838336,0.00045,120]
[419149651,1774944966911,-144025.08390484,0.00045,30]
[419149652,1774944966941,-472.06046423,0.00045,120]
[419149653,1774944966970,-528.71819486,0.00045,30]
[419149654,1774944966997,-510.84491539,0.00045,120]
[419149655,1774944967026,-220.31219348,0.00045,90]
[419149656,1774944967055,-463.42279441,0.00045,120]
[419149657,1774944967085,-624.1345517,0.00045,120]
[419149658,1774944967115,-155.91276916,0.00045,120]
[419149659,1774944967144,-313996.35552462,0.00045,30]
[419149660,1774944986638,-864.0,0.0002859,30]
[419149661,1774944986674,-1000.0,0.00031449,30]
[419149662,1774944986719,-1000.0,0.00034594,30]
[419149663,1774944986764,-227.67,0.00038863,60]
[419149664,1774944986793,-231.13,0.00039,60]
[419149665,1774944986823,-231.13,0.0004056,60]
[419149666,1774944986854,-2349.50581088,0.00041096,120]
[419149667,1774944986977,-231.13,0.00042182,60]
[419149668,1774944987029,-451.0,0.00043561,30]
[419149669,1774944987058,-231.13,0.0004387,60]
[419149670,1774944987087,-451.0,0.00044109,31]
[419149671,1774944987116,-451.0,0.00044657,32]
[419149672,1774944987146,-122382.10187164,0.00045,30]
[419149673,1774944987176,-168.0,0.000452,120]
[419149674,1774944987204,-451.0,0.00045205,33]
[419149675,1774944987236,-168.0,0.000456,120]
[419149676,1774944987265,-231.13,0.00045624,60]
[419149677,1774944987294,-451.0,0.00045753,34]
[419149678,1774944987325,-500.0,0.00046,120]
[419149679,1774944987354,-17756.54800716,0.00046,30]
[419149680,1774944987384,-168.0,0.000461,120]
[419149681,1774944987413,-250.0,0.00046192,120]
[419149682,1774944987441,-451.0,0.00046301,35]
[419149683,1774944987470,-500.0,0.00046575,30]
[419149684,1774944987499,-400.93130795,0.00046575,60]
[419149685,1774944987527,-500.0,0.00046575,120]
[419149686,1774944987556,-500.0,0.00046575,120]
[419149687,1774944987584,-500.0,0.00046575,120]
[419149688,1774944987612,-500.0,0.00046575,120]
[419149689,1774944987641,-500.0,0.00046575,120]
[419149690,1774944987669,-500.0,0.00046575,120]
[419149691,1774944987698,-500.0,0.00046575,120]
[419149692,1774944987727,-500.0,0.00046575,120]
[419149693,1774944987757,-500.0,0.00046575,120]
[419149694,1774944987787,-500.0,0.00046575,120]
[419149695,1774944987818,-500.0,0.00046575,120]
[419149696,1774944987848,-500.0,0.00046575,120]
[419149697,1774944987879,-500.0,0.00046575,120]
[419149698,1774944987910,-500.0,0.00046575,120]
[419149699,1774944987939,-500.0,0.00046575,120]
[419149700,1774944987969,-500.0,0.00046575,120]
[419149701,1774944988000,-500.0,0.00046575,120]
[419149702,1774944988030,-500.0,0.00046575,120]
[419149703,1774944988059,-500.0,0.00046575,120]
[419149704,1774944988088,-500.0,0.00046575,120]
[419149705,1774944988117,-500.0,0.00046575,120]
[419149706,1774944988148,-500.0,0.00046575,120]
[419149707,1774944988178,-500.0,0.00046575,120]
[419149708,1774944988207,-500.0,0.00046575,120]
[419149709,1774944988237,-500.0,0.00046575,120]
[419149710,1774944988268,-500.0,0.00046575,120]
[419149711,1774944988300,-500.0,0.00046575,120]
[419149712,1774944988330,-500.0,0.00046575,120]
[419149713,1774944988360,-500.0,0.00046575,120]
[419149714,1774944988389,-500.0,0.00046575,120]
[419149715,1774944988419,-500.0,0.00046575,120]
[419149716,1774944988451,-500.0,0.00046575,120]
[419149717,1774944988481,-500.0,0.00046575,120]
[419149718,1774944988512,-500.0,0.00046575,120]
[419149719,1774944988542,-500.0,0.00046575,120]
[419149720,1774944988578,-500.0,0.00046575,120]
[419149721,1774944988608,-500.0,0.00046575,120]
[419149722,1774944988639,-500.0,0.00046575,120]
[419149723,1774944988673,-500.0,0.00046575,120]
[419149724,1774944988706,-500.0,0.00046575,120]
[419149725,1774944988737,-500.0,0.00046575,120]
[419149726,1774944988768,-500.0,0.00046575,120]
[419149727,1774944988800,-500.0,0.00046575,120]
[419149728,1774944988831,-500.0,0.00046575,120]
[419149729,1774944988861,-500.0,0.00046575,120]
[419149730,1774944988895,-500.0,0.00046575,120]
[419149731,1774944988926,-500.0,0.00046575,120]
[419149732,1774944988958,-500.0,0.00046575,120]
[419149733,1774944988989,-500.0,0.00046575,120]
[419149734,1774944989019,-500.0,0.00046575,120]
[419149735,1774944989049,-500.0,0.00046575,120]
[419149736,1774944989079,-500.0,0.00046575,120]
[419149737,1774944989111,-500.0,0.00046575,120]
[419149738,1774944989141,-500.0,0.00046575,120]
[419149739,1774944989171,-500.0,0.00046575,120]
[419149740,1774944989202,-561.95499622,0.00046575,120]
[419149741,1774944989234,-228.0,0.00046575,120]
[419149742,1774944989264,-171.0,0.00046575,120]